Cogmind - Beta 14 @@@ ROGUE MODE // 2024.11.17 @ 19:41:54 Player: Arzon Result: Destroyed by S-27 Virus with Autogun Performance ------------- Evolutions (3) 1500 Regions Visited (8) 1600 Robots Destroyed (210) 1050 Value Destroyed (8223) 8223 Prototype IDs (37) 740 Alien Tech Used (0) 0 Bonus (4207) 4207 TOTAL SCORE: 17320 Bonus ------- High Alert Combat Kills 3288 Follower Combat Kills 40 Entered Garrisons 200 Used RIF Installer 500 Aligned with FarCom 300 Friendly Fire -121 Cogmind --------- Core Integrity 0/700 Matter 241/300 Energy 55/100 System Corruption 5% Temperature Cool (24) Movement Treading (240) Ox1 Location -7/Factory Parts ------- > --- POWER (1) -------- (None) > --- PROPULSION (3) --- Light Treads > --- UTILITY (6) ------ Large Storage Unit Advanced Targeting Computer Advanced Targeting Computer Hacking Suite > --- WEAPON (3) ------- Quantum Rifle KE Penetrator > --- INVENTORY (15) --- Light Nuclear Core Carbon-fiber Leg Carbon-fiber Leg Advanced Coolant Injector High-capacity Storage Unit Improved Armor Integrity Analyzer Kinecellerator Advanced Hardlight Generator Point Defense Array Relay Coupler [Specialist] Relay Coupler [Behemoth] Peak State ------------ > --- POWER ------------ Neutrino Core > --- PROPULSION ------- Advanced Medium Treads Heavy Siege Treads > --- UTILITY ---------- Large Storage Unit Advanced Targeting Computer Advanced Targeting Computer Core Analyzer Advanced Hardlight Generator Hacking Suite > --- WEAPON ----------- Quantum Rifle Railgun Heavy Gauss Cannon > --- INVENTORY -------- Particle Reactor Particle Reactor Advanced Coolant Injector Improved Armor Integrity Analyzer Heavy Armor Plating Point Defense Array Relay Coupler [Specialist] Relay Coupler [Behemoth] KE Penetrator Heavy Assault Cannon Heavy Assault Cannon [Rating: 77] Favorites ----------- Power Ion Engine Engine Ion Engine Power Core Neutrino Core Reactor Particle Reactor Propulsion Aluminum Leg Treads Heavy Siege Treads Leg Aluminum Leg Flight Unit Improved VTOL Module Utility Advanced Targeting Computer Device Improved Terrain Scanner Storage Large Storage Unit Processor Advanced Targeting Computer Hackware Hacking Suite Protection Improved Medium Armor Plating Weapon Advanced Assault Cannon Energy Gun Quantum Rifle Ballistic Gun Enhanced Autogun Ballistic Cannon Advanced Assault Cannon Launcher Grenade Launcher Impact Weapon Hammer Build | -11 -10 -10 -10 -9 -8 -7 -7 -7 ------- Run | Yrd Mat Min Exi Min Mat Fac Gar Fac Slots Evolved 6 | . . . . . 4 2 . . Power . | . . . . . . . . . Propulsion 1 | . . . . . 1 . . . Utility 4 | . . . . . 2 2 . . Weapon 1 | . . . . . 1 . . . Parts Attached 136 | 6 13 . 2 . 49 22 25 19 Power 15 | 1 1 . . . 5 2 3 3 Engine 9 | 1 1 . . . 5 . 1 1 Core 3 | . . . . . . 2 1 . Reactor 3 | . . . . . . . 1 2 Propulsion 36 | 2 4 . . . 12 6 7 5 Treads 6 | . . . . . . . 2 4 Leg 29 | 2 4 . . . 11 6 5 1 Wheel . | . . . . . . . . . Hover . | . . . . . . . . . Flight 1 | . . . . . 1 . . . Utility 31 | 1 5 . . . 10 6 5 4 Device 14 | . 2 . . . 3 2 4 3 Storage 4 | 1 1 . . . . 2 . . Processor 6 | . 1 . . . 3 1 1 . Hackware 2 | . . . . . 2 . . . Protection 5 | . 1 . . . 2 1 . 1 Artifact . | . . . . . . . . . Weapon 54 | 2 3 . 2 . 22 8 10 7 Energy Gun 10 | 1 1 . 1 . 1 1 3 2 Energy Cannon . | . . . . . . . . . Ballistic Gun 20 | 1 1 . . . 12 . 4 2 Ballistic Cannon 16 | . . . . . 4 6 3 3 Launcher 7 | . . . 1 . 5 1 . . Special Weapon . | . . . . . . . . . Impact Weapon 1 | . 1 . . . . . . . Slashing Weapon . | . . . . . . . . . Piercing Weapon . | . . . . . . . . . Special Melee Weapon . | . . . . . . . . . Unidentified Prototypes 4 | . . . . . 4 . . . Parts Lost 38 | . 2 . . . 13 3 8 12 Power 6 | . . . . . 1 1 1 3 Propulsion 12 | . . . . . 5 1 3 3 Utility 8 | . 1 . . . 2 1 2 2 Weapon 12 | . 1 . . . 5 . 2 4 Highest Loss Streak 5 | . 1 . . . 5 2 5 4 To Critical Strikes . | . . . . . . . . . Average Slot Usage (%) 91 | . 94 100 91 85 90 99 94 84 Engine 4 | . 14 14 14 14 8 . . . Core 2 | . . . . . . 6 6 2 Treads 4 | . . . . . . . 7 13 Leg 17 | . 28 28 28 28 24 22 10 1 Device 5 | . 1 . . . 6 7 5 5 Storage 8 | . 14 14 14 14 9 6 7 7 Processor 16 | . 4 14 14 14 14 15 22 21 Hackware 6 | . . . . . 5 13 7 7 Protection 1 | . 2 . . . . . 2 . Energy Gun 7 | . 13 14 13 14 8 . 6 4 Ballistic Gun 6 | . 10 14 5 . 8 . 8 3 Ballistic Cannon 7 | . . . . . 3 21 5 9 Peak Build Rating 77 | 6 8 8 22 22 36 49 76 77 Average Rating 42 | 4 6 8 16 22 30 42 62 62 On Entrance 24 | . 6 8 8 22 22 27 49 74 Naked Turns . | . . . . . . . . . Heaviest Build 72 | 14 19 18 23 23 35 49 67 72 Greatest Support 109 | 20 20 20 20 20 38 60 109 100 Greatest Overweight (x) 11 | 1 . . 1 1 11 1 2 2 Average Overweight (x) . | . . . . 1 . . . . Largest Inventory Capacity 15 | 8 10 10 10 10 10 15 15 15 Average Capacity 12 | 6 8 10 10 10 10 12 15 15 Most Carried 15 | 5 10 10 10 10 10 15 15 15 Average Carried 11 | 2 6 10 9 10 8 11 14 13 Final Capacity 15 | 8 10 10 10 10 10 15 15 15 Final Carried 15 | 2 10 10 10 10 10 14 15 11 Class Distribution -------------------- 28% | Scavenger-Gunner 22% | Skirmisher 20% | Hacker-Skirmisher 15% | Mutant 8% | Gunner Dominant Class ---------------- Mutant | -10/Materials Mutant | -10/Mines Mutant | -10/Exiles Mutant | -9/Mines Skirmisher | -8/Materials Hacker-Skirmisher | -7/Factory Scavenger-Gunner | -7/Garrison Scavenger-Gunner | -7/Factory Resources | -11 -10 -10 -10 -9 -8 -7 -7 -7 ----------- Run | Yrd Mat Min Exi Min Mat Fac Gar Fac Matter Collected 5754 | 269 341 20 . . 1683 795 1202 1444 Remotely . | . . . . . . . . . Salvage Created 7293 | 83 680 . . . 2134 666 1573 2157 Parts 369 | 2 28 . . . 96 36 63 144 Haulers Intercepted 10 | . 2 . . . 4 3 . 1 Recyclers Shooed 4 | . 1 . . . 3 . . . Parts Field Recycled . | . . . . . . . . . Retrieved Matter . | . . . . . . . . . Parts Self-Destructed . | . . . . . . . . . Prevented . | . . . . . . . . . Kills | -11 -10 -10 -10 -9 -8 -7 -7 -7 ------- Run | Yrd Mat Min Exi Min Mat Fac Gar Fac Combat Hostiles Destroyed 153 | . 11 . . . 42 15 36 49 Guns 81 | . 9 . . . 30 1 21 20 Cannons 63 | . . . . . 8 13 15 27 AOE 7 | . . . . . 4 1 . 2 Classes Destroyed 19 | 1 7 . . . 7 2 1 1 Worker 11 | . 1 . . . 3 1 . 6 Builder 8 | . . . . . . 1 . 7 Tunneler 5 | . 1 . . . 1 1 . 2 Hauler 10 | . 2 . . . 4 3 . 1 Recycler 9 | 1 1 . . . 4 2 . 1 Mechanic 2 | . . . . . 1 1 . . Operator 4 | . 1 . . . 2 . . 1 Watcher 7 | . 2 . . . 4 1 . . Swarmer 26 | . 2 . . . 10 . 8 6 Cutter 3 | . . . . . . . . 3 Grunt 75 | . 9 . . . 18 10 17 21 Brawler 5 | . . . . . 1 . 3 1 Duelist 10 | . . . . . 2 . 2 6 Protector 4 | . . . . . 1 . . 3 Sentry 12 | . . . . . 7 1 1 3 Specialist 2 | . . . . . . . 2 . Hunter 5 | . . . . . 2 2 . 1 Programmer 9 | . . . . . . 2 3 4 Heavy 3 | . . . . . 1 . . 2 Best Kill Streak 10 | 1 7 . . . 6 7 10 9 Combat Bots Only 10 | . 4 . . . 5 3 10 7 Max Kills in Single Turn 4 | 1 2 . . . 4 2 2 2 Gunslinging 1 | . . . . . . . 1 . Exploded 3 | . . . . . 3 1 . 1 Melee . | . . . . . . . . . Uniques/NPCs Destroyed . | . . . . . . . . . Combat | -11 -10 -10 -10 -9 -8 -7 -7 -7 -------- Run | Yrd Mat Min Exi Min Mat Fac Gar Fac Hostile Shots Fired 707 | . 68 . . . 170 121 109 239 Missed 174 | . 19 . . . 37 34 26 58 Damage Taken 9479 | . 536 . . . 2693 1230 1305 3715 Core 1322 | . 102 . . . 509 205 114 392 Absorbed by Shields 112 | . . . . . . . . 112 Reduced by Siege Mode 403 | . . . . . . . 42 361 Regen/Repaired (Parts) 304 | . 87 . . . . 217 . . Core Remaining (%) 55 | 100 . . . 59 7 . . . Volleys Fired 548 | 3 49 . . . 182 68 133 113 Largest 3 | 2 2 . . . 3 3 3 3 Hottest 190 | 70 70 . . . 117 151 190 190 Shots Fired 1132 | 6 95 . . . 347 170 273 241 Gun 693 | 6 95 . . . 272 6 213 101 Cannon 429 | . . . . . 67 162 60 140 Launcher 10 | . . . . . 8 2 . . Special . | . . . . . . . . . Kinetic 805 | 3 49 . . . 265 162 143 183 Thermal 306 | 3 46 . . . 74 6 130 47 Explosive 10 | . . . . . 8 2 . . Electromagnetic 11 | . . . . . . . . 11 Robot Hit Streak 62 | 2 8 . . . 13 10 16 62 Robot Miss Streak 5 | 1 3 . . . 5 4 5 3 Penetration Max 1 | . . . . . . . 1 1 Secondary Targets 5 | . . . . . 2 . 3 . Max Gunslinging Chain 1 | . . . . . 1 . 1 . Autonomous 67 | . . . . . 67 . . . Shots Hit Robots 726 | 4 63 . . . 225 105 143 186 Core Hits 319 | 2 28 . . . 91 38 64 96 Critical Kills 3 | . 1 . . . 2 . . . Critical Parts Destroyed 7 | . 1 . . . 1 . 2 3 Critical Strikes 37 | . 3 . . . 10 3 6 15 Burn 5 | . 1 . . . 3 . 1 . Destroy 10 | . 1 . . . 3 . 3 3 Blast 21 | . . . . . 4 3 2 12 Smash 1 | . 1 . . . . . . . Melee Attacks 8 | . 8 . . . . . . . Impact 8 | . 8 . . . . . . . Slashing . | . . . . . . . . . Piercing . | . . . . . . . . . Sneak Attacks 2 | . 2 . . . . . . . Combat Hostiles . | . . . . . . . . . Follow-up Attacks . | . . . . . . . . . Damage Inflicted 20846 | 50 1011 . . 9 6184 2617 3663 7312 Guns 9408 | 50 732 . . . 3683 110 2455 2378 Cannons 9362 | . . . . . 1479 2266 1208 4409 Explosions 1768 | . . . . . 1013 241 . 514 Melee 275 | . 275 . . . . . . . Ramming 33 | . 4 . . 9 9 . . 11 Kinetic 14330 | 24 377 . . . 3397 2266 2665 5601 Thermal 5000 | 26 355 . . . 2022 110 998 1489 Explosive 1082 | . . . . . 756 241 . 85 Electromagnetic 126 | . . . . . . . . 126 Impact 275 | . 275 . . . . . . . Slashing . | . . . . . . . . . Piercing . | . . . . . . . . . Highest Corruption 5 | . . . . . 4 3 4 5 Average Corruption 3 | . . . . . 3 2 3 4 Corruption Purged . | . . . . . . . . . Corruption Blocked . | . . . . . . . . . Effects 121 | . . . . . 8 16 39 58 Message Errors 34 | . . . . . 3 6 13 12 Matter Fused 20 | . . . . . 2 2 4 12 Heat Flow Errors 18 | . . . . . 1 5 4 8 Energy Discharges 11 | . . . . . 1 1 5 4 Parts Rejected 1 | . . . . . . . . 1 Parts Fused 2 | . . . . . . . 2 . Data Loss (minor) 14 | . . . . . 1 1 4 8 Data Loss (major) 4 | . . . . . . . 1 3 Misfires 10 | . . . . . . 1 4 5 Weapon Failures 7 | . . . . . . . 2 5 Overload Shots . | . . . . . . . . . Overflow Damage 446 | . 88 . . . 44 55 20 239 Projectiles 315 | . . . . . 44 27 20 224 Explosions 43 | . . . . . . 28 . 15 Melee 88 | . 88 . . . . . . . Knockbacks 63 | . 2 . . . 8 18 7 28 Impact 2 | . 2 . . . . . . . Kinetic 54 | . . . . . 8 15 7 24 Secondary 7 | . . . . . . 3 . 4 Self-Inflicted Damage 158 | . . . . . . . . 158 Shots 3 | . . . . . . . . 3 Rammed 1 | . . . . . . . . 1 Targets Rammed 9 | . 1 . . 1 6 . . 1 Kicked 8 | . 1 . . 1 6 . . . Crushed . | . . . . . . . . . Highest Temperature 470 | 18 359 . . . 255 423 413 470 Average Temperature 123 | 9 152 . . . 79 149 110 142 Received Heat Transfer 2466 | . 222 . . . 792 363 414 675 Effects 31 | . 2 . . . . 9 6 14 Shutdowns 5 | . . . . . . 3 1 1 Energy Bleed 5 | . . . . . . 1 3 1 Interference 14 | . . . . . . 4 2 8 Matter Decay 4 | . 2 . . . . 1 . 1 Short Circuit 1 | . . . . . . . . 1 Damage (major) 2 | . . . . . . . . 2 Siege Activations 18 | . . . . . . . 7 11 Total Turns 401 | . . . . . . . 119 282 Longest Duration 74 | . . . . . . . 74 69 Robots Corrupted 3 | . 3 . . . . . . . Combat Hostiles 2 | . 2 . . . . . . . Parts Fried 2 | . 2 . . . . . . . Impact Corruptions 6 | . 6 . . . . . . . Robots Melted . | . . . . . . . . . Combat Hostiles . | . . . . . . . . . Parts Melted 8 | . 3 . . . 3 . 1 1 Heat Transferred 7514 | 74 1075 . . . 2740 222 1739 1664 Parts Sabotaged . | . . . . . . . . . Parts Stolen . | . . . . . . . . . Parts Stripped . | . . . . . . . . . Power Chain Reactions 3 | . . . . . . . . 3 Alert | -11 -10 -10 -10 -9 -8 -7 -7 -7 ------- Run | Yrd Mat Min Exi Min Mat Fac Gar Fac Peak Influence 2000 | 5 299 31 . . 985 582 1978 2000 Initial 1038 | . 3 31 . . . 378 322 1038 Average 733 | 1 165 31 . . 395 438 1084 1459 Maximum Alert Level 5 | . 1 . . . 3 2 5 5 Low Security (%) 22 | 100 69 100 . 100 44 . . . Level 1 11 | . 30 . . . 4 45 3 . Level 2 16 | . . . . . 10 54 21 . Level 3 19 | . . . . . 40 . 24 9 Level 4 20 | . . . . . . . 35 62 Level 5 8 | . . . . . . . 14 27 High Security . | . . . . . . . . . Max Security . | . . . . . . . . . Squads Dispatched 33 | . 4 . . . 7 6 . 16 Investigation 8 | . 3 . . . 2 2 . 1 Extermination 5 | . . . . . . 2 . 3 Reinforcement 12 | . 1 . . . 4 2 . 5 Assault 5 | . . . . . 1 . . 4 Garrison 3 | . . . . . . . . 3 Intercept . | . . . . . . . . . Searches Triggered . | . . . . . . . . . Construction Impeded 1 | . . . . . 1 . . . Haulers Reinforced 1 | . . . . . . 1 . . Active Scanning Responses . | . . . . . . . . . Cargo Convoy Interrupts 1 | . . . . . . . . 1 Stealth | -11 -10 -10 -10 -9 -8 -7 -7 -7 --------- Run | Yrd Mat Min Exi Min Mat Fac Gar Fac Distress Signals 6 | . 1 . . . 3 1 . 1 Communications Jammed . | . . . . . . . . . Distress Signals . | . . . . . . . . . Times Spotted 177 | . 21 . . . 48 16 35 57 Peak Tracking Total 8 | . 6 . . . 6 4 8 6 Tactical Retreats 6 | . 1 . . . 2 . 2 1 Traps | -11 -10 -10 -10 -9 -8 -7 -7 -7 ------- Run | Yrd Mat Min Exi Min Mat Fac Gar Fac Traps Triggered 13 | . 4 . . . 4 1 3 1 Indirectly . | . . . . . . . . . Trap Hack Attempts . | . . . . . . . . . Triggered . | . . . . . . . . . Disarmed 1 | . . . . . . 1 . . Reprogrammed . | . . . . . . . . . Reused . | . . . . . . . . . Traps Extracted . | . . . . . . . . . Installed . | . . . . . . . . . Triggered 1 | . . . . . . . . 1 Machines | -11 -10 -10 -10 -9 -8 -7 -7 -7 ---------- Run | Yrd Mat Min Exi Min Mat Fac Gar Fac Machines Disabled 35 | . . . . . 6 7 7 15 Max in Single Turn 6 | . . . . . 2 4 1 6 Garrison Relay 5 | . . . . . . . 5 . Machines Repaired . | . . . . . . . . . Machines Dismantled . | . . . . . . . . . Machines Sabotaged . | . . . . . . . . . Overloaded Fab Kills . | . . . . . . . . . Hacking | -11 -10 -10 -10 -9 -8 -7 -7 -7 --------- Run | Yrd Mat Min Exi Min Mat Fac Gar Fac Machines Accessed 29 | . 6 . 1 . 8 7 2 5 Terminals 22 | . 5 . . . 7 4 2 4 Fabricators . | . . . . . . . . . Repair Stations 3 | . 1 . . . . 1 . 1 Recycling Units 1 | . . . . . 1 . . . Scanalyzers 1 | . . . . . . 1 . . Garrison Access 1 | . . . . . . 1 . . Total Hacks 88 | . 16 . 1 . 29 29 3 10 Successful 49 | . 5 . 1 . 16 24 2 1 Failed 39 | . 11 . . . 13 5 1 9 Catastrophic 8 | . 3 . . . 2 . . 3 Database Lockouts . | . . . . . . . . . Manual 27 | . 11 . 1 . 11 3 . 1 Terminals 71 | . 14 . . . 27 20 3 7 Fabricators . | . . . . . . . . . Repair Stations 7 | . 2 . . . . 2 . 3 Recycling Units 2 | . . . . . 2 . . . Scanalyzers 6 | . . . . . . 6 . . Garrison Access 1 | . . . . . . 1 . . Terminal Hacks 37 | . 3 . 1 . 15 15 2 1 Record 6 | . . . . . 2 4 . . Prototype ID Bank 5 | . 1 . . . 2 2 . . Open DSF 1 | . . . . . . 1 . . Level Access Points 1 | . . . . . . 1 . . Branch Access Points 4 | . 1 . . . 2 1 . . Emergency Access Points 4 | . . . . . 2 1 1 . Repair Station Index 1 | . . . . . 1 . . . Scanalyzer Index 1 | . . . . . 1 . . . Alert Level 1 | . . . . . . 1 . . Unreport Threat 1 | . . . . . 1 . . . Locate Traps 4 | . 1 . . . 2 1 . . Disarm Traps 1 | . . . . . . 1 . . Dispatch Records 1 | . . . . . 1 . . . Security Status 1 | . . . . . . 1 . . Recall Investigation 1 | . . . . . 1 . . . Registered Components 1 | . . . . . . . . 1 Zone Layout 1 | . . . . . . 1 . . Security Stations 1 | . . . . . . . 1 . Derelict Proto ID Bank 1 | . . . 1 . . . . . Fabricator Hacks . | . . . . . . . . . Repair Station Hacks 4 | . 2 . . . . 2 . . Scan Component 2 | . 1 . . . . 1 . . Repair 2 | . 1 . . . . 1 . . Recycling Unit Hacks 1 | . . . . . 1 . . . Report Inventory 1 | . . . . . 1 . . . Scanalyzer 6 | . . . . . . 6 . . Insert Component 4 | . . . . . . 4 . . Analyze 2 | . . . . . . 2 . . Garrison Access Hacks 1 | . . . . . . 1 . . Unlock Access 1 | . . . . . . 1 . . Unauthorized Hacks . | . . . . . . . . . Terminals . | . . . . . . . . . Fabricators . | . . . . . . . . . Repair Stations . | . . . . . . . . . Recycling Units . | . . . . . . . . . Scanalyzers . | . . . . . . . . . Garrison Access . | . . . . . . . . . Data Cores Recovered 1 | . . . . . . . . 1 Used 1 | . . . . . . . . 1 Hacking Detections 25 | . 6 . . . 7 5 2 5 Full Trace Events 6 | . . . . . 3 2 . 1 Feedback Events . | . . . . . . . . . Feedback Blocked . | . . . . . . . . . Robot Schematics Acquired . | . . . . . . . . . Robots Built . | . . . . . . . . . Authchips . | . . . . . . . . . Time . | . . . . . . . . . Total Robot Build Rating . | . . . . . . . . . Part Schematics Acquired 2 | . . . . . . 2 . . Parts Built . | . . . . . . . . . Authchips . | . . . . . . . . . Time . | . . . . . . . . . Total Part Build Rating . | . . . . . . . . . Parts Repaired 2 | . 1 . . . . 1 . . Time 52 | . 26 . . . . 26 . . Parts Recycled . | . . . . . . . . . Recycled Matter . | . . . . . . . . . Retrieved Matter . | . . . . . . . . . Retrieved Components . | . . . . . . . . . Parts Scanalyzed 2 | . . . . . . 2 . . Part Schematics Acquired 2 | . . . . . . 2 . . Parts Damaged . | . . . . . . . . . Bothacking | -11 -10 -10 -10 -9 -8 -7 -7 -7 ------------ Run | Yrd Mat Min Exi Min Mat Fac Gar Fac Used RIF Installer 1 | . . . . . . . 1 . Robots Hacked . | . . . . . . . . . Non-combat . | . . . . . . . . . Combat . | . . . . . . . . . Robot Hacks Applied . | . . . . . . . . . Relay Couplers Released 18 | . . . . . . . 18 . Machine Destruction 18 | . . . . . . . 18 . Fabnet Peak Effective % . | . . . . . . . . . Robots Rewired 5 | . . . . . . . 5 . Allies Hacked . | . . . . . . . . . Hacks Repelled . | . . . . . . . . . Allies | -11 -10 -10 -10 -9 -8 -7 -7 -7 -------- Run | Yrd Mat Min Exi Min Mat Fac Gar Fac Total Allies 5 | . . . . . . . 5 . Largest Group 5 | . . . . . . . 5 2 Highest-Rated Group 72 | . . . . . . . 72 28 Highest-Rated Ally 16 | . . . . . . . 16 16 Total Orders . | . . . . . . . . . Ally Attacks 22 | . . . . . . . 16 6 Total Damage 286 | . . . . . . . 231 55 Kills 1 | . . . . . . . 1 . Allies Corrupted 1 | . . . . . . . 1 . Allies Melted . | . . . . . . . . . Intel | -11 -10 -10 -10 -9 -8 -7 -7 -7 ------- Run | Yrd Mat Min Exi Min Mat Fac Gar Fac Robot Analysis Total . | . . . . . . . . . Derelict Logs Recovered . | . . . . . . . . . Drone Launches . | . . . . . . . . . Drone Recoveries . | . . . . . . . . . Exploration | -11 -10 -10 -10 -9 -8 -7 -7 -7 ------------- Run | Yrd Mat Min Exi Min Mat Fac Gar Fac Turns Passed 10237 | 79 874 94 352 187 2881 1536 2378 1856 Spaces Moved 4895 | 58 536 79 225 98 1060 886 1203 750 Core 27 | 20 . . . . 7 . . . Treads 1306 | . . . . . . . 556 750 Legs 3562 | 38 536 79 225 98 1053 886 647 . Wheels . | . . . . . . . . . Hover . | . . . . . . . . . Flight . | . . . . . . . . . Fastest Speed 50 | 50 120 120 120 190 120 120 123 162 Average Speed 141 | 97 120 120 153 190 134 126 145 173 Slowest Speed 600 | 120 120 120 190 190 600 190 270 330 Overloaded Moves . | . . . . . . . . . Propulsion Burnouts . | . . . . . . . . . Robots Hopped . | . . . . . . . . . Cave-ins Triggered . | . . . . . . . . . Exploration Rate (%) 45 | 4 93 21 61 27 70 15 98 20 Regions Visited 8 Branch Regions 3 Pre-discovered Areas . | . . . . . . . . . Known Exits Taken 2 | . 1 . . . . 1 . . Unknown Exits Taken 5 | 1 . 1 1 1 1 . . . Scrap Searched 1 | . . 1 . . . . . . Spaces Dug 2 | . . . . . . . . 2 Terrain Destroyed 208 | . . . . . 80 20 4 104 Melee . | . . . . . . . . . Projectile 77 | . . . . . 18 7 4 48 AOE 131 | . . . . . 62 13 . 56 Terrain Rammed . | . . . . . . . . . Walls Destroyed . | . . . . . . . . . Machines Disabled . | . . . . . . . . . Actions | -11 -10 -10 -10 -9 -8 -7 -7 -7 --------- Run | Yrd Mat Min Exi Min Mat Fac Gar Fac Total 7310 | 74 654 78 233 98 2323 1173 1615 1062 Wait 1454 | . 30 . . . 953 159 157 155 Move 4887 | 57 535 78 224 97 1059 885 1202 750 Hop . | . . . . . . . . . Pick Up 149 | 8 15 . 3 . 47 27 31 18 Fast Attach . | . . . . . . . . . Attach 73 | 6 3 . 2 . 28 6 10 18 Detach 3 | . . . . . 2 . . 1 Swap 63 | . 10 . . . 21 16 15 1 Drop 75 | . 3 . 4 . 25 12 26 5 Fire 548 | 3 49 . . . 182 68 133 113 Melee 8 | . 8 . . . . . . . Ram . | . . . . . . . . . Kick 8 | . 1 . . 1 6 . . . Crush 1 | . . . . . . . . 1 Escape Stasis 15 | . . . . . . . 15 . Rewire 26 | . . . . . . . 26 . Trap . | . . . . . . . . . Miscellaneous . | . . . . . . . . . Route ------- -11/Scrapyard -10/Materials (discovered 5 exits: [*Mat x3] / *Min x2) -10/Mines -10/Exiles -9/Mines -8/Materials (discovered 3 exits: *Fac x3) -7/Factory (discovered 7 exits: *Fac x4 / Low x2 / Gar) -7/Garrison (discovered 3 exits: *Fac x3) -7/Factory History --------- Turn | Location | Event 12 | -11/Scrapyard | Discovered new exit (range 15) 80 | -11/Scrapyard | Entered Materials 80 | -10/Materials | Discovered new exit (range 14) 96 | -10/Materials | Identified exit to Mines 319 | -10/Materials | Build established: Mutant 428 | -10/Materials | Discovered new exit (range 8) 573 | -10/Materials | Discovered new exit (range 14) 705 | -10/Materials | Repaired Assault Rifle 799 | -10/Materials | Discovered new exit (range 8) 954 | -10/Materials | Entered Mines 1042 | -10/Mines | Deemed a non-threat by the Exiles lab entrance 1043 | -10/Mines | Discovered new exit (range 5) 1048 | -10/Mines | Entered Exiles 1082 | -10/Exiles | Met 8R-AWN 1100 | -10/Exiles | Met EX-HEX 1135 | -10/Exiles | Met EX-BIN 1150 | -10/Exiles | Aligned with FarCom system 1152 | -10/Exiles | Given EX-Vault access code 1180 | -10/Exiles | Opened EX-Vault 1190 | -10/Exiles | Found AWS/Thermal 1242 | -10/Exiles | Warned to stay clear of 0b10 Research branches 1292 | -10/Exiles | Met EX-DEC 1371 | -10/Exiles | Discovered new exit (range 15) 1400 | -10/Exiles | Left Exiles lab with AWS/Thermal 1400 | -10/Exiles | Entered Mines 1480 | -9/Mines | Met a Derelict bent on vengeance 1577 | -9/Mines | Discovered new exit (range 4) 1587 | -9/Mines | Entered Materials 1587 | -8/Materials | Evolved 4 slots: Propulsion x1, Utility x2, Weapon x1 1891 | -8/Materials | Build established: Skirmisher 3075 | -8/Materials | Discovered new exit (range 15) 3258 | -8/Materials | Discovered new exit (range 15) 3261 | -8/Materials | AWS/Thermal suddenly broke down 3327 | -8/Materials | Lost 3 parts (2n1w) 3824 | -8/Materials | Build established: Hacker-Skirmisher 3980 | -8/Materials | Discovered new exit (range 9) 3987 | -8/Materials | First assault squad dispatched 4038 | -8/Materials | Core integrity fell below 50% 4103 | -8/Materials | Lost 5 parts (2n1u2w) 4146 | -8/Materials | Core integrity fell below 20% 4163 | -8/Materials | Lost 4 parts (1p1u2w) 4468 | -8/Materials | Entered Factory 4468 | -7/Factory | Evolved 2 slots: Utility x2 5055 | -7/Factory | Repaired Med. Storage Unit 5379 | -7/Factory | Discovered new exit (range 13) 5552 | -7/Factory | Identified exit to Lower Caves 5552 | -7/Factory | Identified exit to Factory 6000 | -7/Factory | Identified exit to Garrison 6004 | -7/Factory | Entered Garrison 6028 | -7/Garrison | Triggered checkpoint 6098 | -7/Garrison | Garrison Relay disabled 6099 | -7/Garrison | Build established: Skirmisher 6247 | -7/Garrison | Lost 5 parts (1p1n1u2w) 6460 | -7/Garrison | Learned Factory security intel 6467 | -7/Garrison | Build established: Gunner 6592 | -7/Garrison | Triggered checkpoint 6712 | -7/Garrison | Triggered checkpoint 6728 | -7/Garrison | Triggered checkpoint 6746 | -7/Garrison | Triggered checkpoint 6813 | -7/Garrison | Destroyed 10 combat bots 6942 | -7/Garrison | Garrison Relay disabled 6975 | -7/Garrison | Discovered new exit (range 10) 7110 | -7/Garrison | Build established: Scavenger-Gunner 7416 | -7/Garrison | Triggered checkpoint 7561 | -7/Garrison | Garrison Relay disabled 7666 | -7/Garrison | Installed Relay Interface Framework 7952 | -7/Garrison | Discovered new exit (range 6) 7978 | -7/Garrison | Triggered checkpoint 7980 | -7/Garrison | Triggered checkpoint 8018 | -7/Garrison | Lost 3 allies 8038 | -7/Garrison | Garrison Relay disabled 8184 | -7/Garrison | Triggered checkpoint 8232 | -7/Garrison | Garrison Relay disabled 8256 | -7/Garrison | Discovered new exit (range 9) 8382 | -7/Garrison | Entered Factory 8382 | -7/Factory | Accompanied by 2 allies 8477 | -7/Factory | Garrison activated, responded to threat 8782 | -7/Factory | First assault squad dispatched 8940 | -7/Factory | Core integrity fell below 50% 9385 | -7/Factory | Cargo convoy interrupted 9775 | -7/Factory | Destroyed 7 combat bots 9906 | -7/Factory | Lost 4 parts (1p1n1u1w) 10224 | -7/Factory | Core integrity fell below 20% 10238 | -7/Factory | Destroyed by S-27 Virus with Autogun Last Messages --------------- Chain reaction triggered in Imp. Deuterium Engine. Shock Rifle destroyed. Slug penetrates L-41 Fighter. Destroyed Carbon-fiber Leg. Destroyed Imp. Melee Analysis Suite. L-41 Fighter destroyed. Rnf. Deuterium Engine severed. System corrupted: FCS attempts to trigger Hvy. Assault Cannon. System corrupted: Hvy. Assault Cannon misfires. L-41 Fighter knocked back. S-27 Virus knocked back. U-05 Engineer lays Concrete. Hvy. Assault Cannon destroyed. U-05 Engineer lays Concrete. Slug penetrates L-41 Fighter. U-05 Engineer lays Concrete. Arm. Treads severed. [Achievement: 10k Club] Map ----- +----------------------------------------------------+ | ???????? ????????????????????????????????????????? | | ???????? ????????????????????????????????????????? | | ???????? ????????????????????????????????????????? | | ???????? ????????????????????????????????????????? | | ???????#+#???????????????????????????????????????? | | ??????? ???????????????????????????????????????? | | ??????? ???????????????????????????????????????? | | ??????? ???????????????????????????????????????? | | ??????? ???????????????????????????????????????? | | ??????? ???????????????????????????????????????? | | ???????# #???????????????;#??????????????????????? | | ???????# #???????????????r ??????????????????????? | | ???????# #??????????????? ??????????????????????? | | ??????##+########???????? ??????????????????????? | | ??????+ !#?????"?? ???? ?????????????????? | | ??????# !! #?#???" " ??? ?????????????????? | | #?????# ! #?# " " " ??? ??????????????????? | | #?????# """ #?# " " " ?? ?????????????????? | | #?????# """ #?? " " " ?? ?????????????????? | | #?????# """ #???" " " "? ""??????????????????? | | #?????# #???? " " "? "??????? ???????????? | | ##!???# #????? """?????? ?????????? | | ##########+###########%;w#;##### ?????????? | | = u ????????? | | !% "?????????? | | s @= "?????????? | | l u "?????????? | | [^[ r ????????? | | ##########+#############;####### [[ "?????????? | | #?????????????????????? ?????????[ "?????????? | | #??????????????????????"""??????????????????????? | | #??????????????????????"""??????????????????????? | | #??????????????????????"""??????????????????????? | | #?????????????????????? ??????????????????????? | | #??????????????????????"""??????????????????????? | | ##???????????????????????????????????????????????? | | ????????????????????????????????????????????????? | | #??????????????????????????????????????????????? | | ???????????????????????????????????????????????? | | #??????????????????????????????????????????????? | | #??????????????????????????????????????????????? | | ???????????????????????????????????????????????? | | ?????????????????????????????????????????????????? | | ?????????????????????????????????????????????????? | | ?????????????????????????????????????????????????? | | ?????????????????????????????????????????????????? | | ?????????????????????????????????????????????????? | | ?????????????????????????????????????????????????? | | ?????????????????????????????????????????????????? | | ####?????????????????????????????????????????????? | +----------------------------------------------------+ Best States ------------- Heat Dissipation 61 Coolant Potential 100 Energy Generation 23 Energy Capacity 340 Matter Stores 300 Matter Capacity 300 Sight Range 16 Robot Scan Range 14 Terrain Scan Range 16 Terrain Scan Density 110 Additional Mass Support 9 Armor Coverage 600 Weapon Shielding 33 Evasion (%) 55 Targeting Accuracy 16 Core Analysis 6 Recoil Reduction 3 Offensive Hacking 20 Item Schematics ----------------- Imp. Light Cannon | -7/Factory | Scanalyzed Deuterium Engine | -7/Factory | Scanalyzed Robot Schematics ------------------ None Fabricated ------------ Nothing Alien Tech Used ----------------- None Achievements -------------- 10k Club A New Friend Dramatic Entrance GoHome() Omniscient Cartographer Challenges ------------ None Game ------ Seed DerelictFusionScythe Manual? 0 Play Time 02:22:00 Cumulative 16.9 hours Start 2024.11.17 @ 17:13:28 End 2024.11.17 @ 19:41:54 Sessions 1 Manual Loads 0 Difficulty Rogue Special Mode None Game No. 19 Rogue 19 Adventurer 0 Explorer 0 Win Type - Total 0 Types 0/0/0/0/0/0/0/0/0 Lore% 11 Gallery% 15 Achievement% 17 Wizard Run 0 Options --------- Layout 1 ASCII 0 Keyboard 0 Movement Mouse Keybinds 0 Fullscreen 1 Font 48/Smallcaps Map View 50x35 Zoom Use 0% Tactical HUD 0 Map Filters NONE Filters NONE Steam 1 RUN: 0a8bfc58-8918-4fc3-ab85-a5c4230f25dc